Cogmind - Beta 15 @@@ ROGUE MODE // 2025.08.03 @ 21:12:41 Player: s0lid Result: Destroyed by L-41 Fighter with Axe Performance ------------- Evolutions (4) 2000 Regions Visited (7) 1400 Robots Destroyed (146) 730 Value Destroyed (4219) 4219 Prototype IDs (23) 460 Alien Tech Used (0) 0 Bonus (588) 588 TOTAL SCORE: 9397 Bonus ------- High Alert Combat Kills 588 Cogmind --------- Core Integrity 0/850 Matter 33/300 Energy 46/100 System Corruption 33% Temperature Cool (0) Movement Core (100) Ox1 Location -6/Factory Parts ------- > --- POWER (2) -------- (None) > --- PROPULSION (4) --- (None) > --- UTILITY (6) ------ Enhanced Optical Array Advanced Signal Interpreter Advanced Melee Analysis Suite > --- WEAPON (3) ------- Greatsword > --- INVENTORY (5) ---- Quantum Capacitor Peak State ------------ > --- POWER ------------ Light Fission Core Heavy Antimatter Reactor > --- PROPULSION ------- Wheel Wheel > --- UTILITY ---------- Huge Storage Unit Active Sensor Suite Improved Medium Armor Plating Focal Shield > --- WEAPON ----------- Cooled Plasma Rifle Cooled Plasma Rifle Gauss Rifle > --- INVENTORY -------- Light Nuclear Core Improved Deuterium Engine Micro Nuclear Core Flexi-carbon Leg Flexi-carbon Leg Thermal Generator Improved Heat Sink Coolant Injector Compact Matter Pod Gravity Neutralizer Improved Signal Interpreter Energy Filter Quantum Capacitor Shock Absorption System Hacking Suite Enhanced Autogun Gauss Rifle Gauss Rifle Mini Assault Cannon Rocket Array Mini Smartbomb Launcher Improved Datajack Greatsword [Rating: 80] Favorites ----------- Power Enhanced Nuclear Core Engine Deuterium Engine Power Core Enhanced Nuclear Core Reactor Heavy Antimatter Reactor Propulsion Wheel Treads Improved Medium Treads Wheel Wheel Hover Unit Gravmag Array Flight Unit Improved VTOL Module Utility Huge Storage Unit Device Improved Heat Sink Storage Huge Storage Unit Processor Targeting Computer Hackware System Shield Protection Reflective Plating Weapon Heavy Ion Cannon Energy Gun Precision Shock Rifle Energy Cannon Heavy Ion Cannon Ballistic Gun Enhanced Autogun Ballistic Cannon Advanced Assault Cannon Launcher Mini Smartbomb Launcher Special Weapon Plasma Cutter Impact Weapon Heavy Flail Slashing Weapon Greatsword Piercing Weapon Force Lance Build | -11 -10 -9 -8 -7 -6 -6 -6 ------- Run | Yrd Mat Mat Mat Fac Fac Was Fac Slots Evolved 8 | . . 2 2 2 2 . . Power 1 | . . . . 1 . . . Propulsion 2 | . . . 1 . 1 . . Utility 4 | . . 2 . 1 1 . . Weapon 1 | . . . 1 . . . . Parts Attached 120 | 9 4 17 25 45 5 3 12 Power 13 | 1 1 3 2 5 1 . . Engine 7 | 1 . 3 . 3 . . . Core 5 | . 1 . 2 1 1 . . Reactor 1 | . . . . 1 . . . Propulsion 25 | 3 1 2 6 9 1 . 3 Treads 1 | . . . . . . . 1 Leg . | . . . . . . . . Wheel 22 | 3 1 2 6 8 1 . 1 Hover 1 | . . . . . . . 1 Flight 1 | . . . . 1 . . . Utility 40 | 2 2 5 6 16 2 1 6 Device 20 | 1 1 3 4 6 1 1 3 Storage 4 | 1 1 . 1 1 . . . Processor 6 | . . 1 . 2 . . 3 Hackware 2 | . . . . 2 . . . Protection 8 | . . 1 1 5 1 . . Artifact . | . . . . . . . . Weapon 42 | 3 . 7 11 15 1 2 3 Energy Gun 16 | 2 . 1 1 9 . . 3 Energy Cannon 8 | . . 1 6 1 . . . Ballistic Gun 9 | 1 . 5 1 1 1 . . Ballistic Cannon 3 | . . . 2 1 . . . Launcher 2 | . . . . 2 . . . Special Weapon 1 | . . . 1 . . . . Impact Weapon 1 | . . . . 1 . . . Slashing Weapon 1 | . . . . . . 1 . Piercing Weapon 1 | . . . . . . 1 . Special Melee Weapon . | . . . . . . . . Unidentified Prototypes 15 | . . . 3 12 . . . Corrupted Parts 2 | . . . . . . 2 . System Corruption 14 | . . . . . . 14 . Parts Lost 63 | . . 12 7 24 4 8 8 Power 7 | . . 4 . 2 1 . . Propulsion 18 | . . 2 3 7 3 2 1 Utility 18 | . . 3 3 6 . 3 3 Weapon 20 | . . 3 1 9 . 3 4 Highest Loss Streak 9 | . . 7 3 9 2 8 7 To Critical Strikes 1 | . . . . . 1 . . Average Backups 19 | 4 8 15 22 23 19 10 2 Power 3 | 1 2 2 3 4 3 1 . Propulsion 2 | 1 3 4 4 1 . . . Utility 6 | . 1 3 6 9 9 4 . Weapon 5 | . 1 3 6 7 5 3 1 Tool/Special . | . . . . . . . . Unused Backups 38 | . . 3 14 8 . 13 . Power 12 | . . 1 4 4 . 3 . Propulsion 5 | . . . 3 . . 2 . Utility 10 | . . . 4 1 . 5 . Weapon 9 | . . 2 2 3 . 2 . Tool/Special 2 | . . . 1 . . 1 . Average Slot Usage (%) 89 | . 100 90 97 96 68 41 39 Engine 4 | . 4 4 2 6 . . . Core 5 | . 9 5 6 5 3 3 . Reactor 1 | . . . . 1 6 3 . Wheel 21 | . 28 21 24 21 15 6 . Device 14 | . 14 15 24 12 9 8 7 Storage 8 | . 14 11 9 9 6 2 . Processor 3 | . . 10 . 4 2 . 10 Hackware 2 | . . . . 6 . . . Protection 2 | . . . 1 3 3 3 . Energy Gun 9 | . 14 9 . 12 13 7 13 Energy Cannon 6 | . . 1 17 5 . . . Ballistic Gun 3 | . 14 10 . 2 5 2 . Ballistic Cannon 1 | . . . 7 . . 1 . Peak Build Rating 80 | 7 10 21 38 66 79 80 43 Average Rating 36 | 6 9 14 32 47 72 46 30 On Entrance 31 | . 7 10 21 38 66 79 29 Naked Turns 56 | . . . . . . 49 7 Heaviest Build 131 | 14 49 59 117 128 131 131 16 Greatest Support 50 | 26 26 32 42 50 38 20 20 Greatest Overweight (x) 12 | . 1 2 3 6 12 6 1 Average Overweight (x) 2 | . . 1 2 3 4 1 . Largest Inventory Capacity 25 | 8 20 20 25 25 25 25 5 Average Capacity 21 | 7 13 20 23 25 25 12 5 Most Carried 25 | 7 11 20 25 25 23 25 5 Average Carried 19 | 4 8 16 22 24 20 11 4 Final Capacity 25 | 8 20 20 25 25 25 5 5 Final Carried 25 | 7 11 20 25 20 23 . 2 Class Distribution -------------------- 33% | Scavenger-Gunner 15% | Gunner 14% | Mutant 10% | Scavenger-Mutant 7% | Hacker-Gunner 5% | Scavenger-Tank 5% | Skirmisher 3% | Tank 3% | Scavenger-Skirmisher Dominant Class ---------------- Mutant | -10/Materials Scavenger-Mutant | -9/Materials Scavenger-Gunner | -8/Materials Scavenger-Gunner | -7/Factory Skirmisher | -6/Factory Mutant | -6/Waste Gunner | -6/Factory Resources | -11 -10 -9 -8 -7 -6 -6 -6 ----------- Run | Yrd Mat Mat Mat Fac Fac Was Fac Matter Collected 2867 | 311 86 569 747 982 144 . 28 Remotely 130 | 86 44 . . . . . . Salvage Created 4760 | 233 346 582 1172 2212 116 . 99 Parts 304 | 13 13 39 98 126 8 . 7 Haulers Intercepted 10 | . 1 1 3 5 . . . Recyclers Shooed 4 | . 1 . . . . . 3 Parts Field Recycled . | . . . . . . . . Retrieved Matter . | . . . . . . . . Parts Self-Destructed . | . . . . . . . . Prevented . | . . . . . . . . Kills | -11 -10 -9 -8 -7 -6 -6 -6 ------- Run | Yrd Mat Mat Mat Fac Fac Was Fac Combat Hostiles Destroyed 99 | . 4 18 31 42 2 . 2 Melee 1 | . . . . . . . 1 Guns 43 | . 4 18 5 14 1 . 1 Cannons 39 | . . . 26 13 . . . AOE 12 | . . . . 12 . . . Classes Destroyed 17 | 3 2 3 3 6 . . . Worker 13 | 2 1 1 2 6 . . 1 Builder 8 | . . . 2 5 . . 1 Tunneler 5 | 5 . . . . . . . Hauler 10 | . 1 1 3 5 . . . Recycler 6 | 1 1 . 1 3 . . . Operator 2 | . . . . 2 . . . Watcher 3 | . . 1 1 1 . . . Swarmer 30 | . . 10 15 3 . . 2 Grunt 33 | . 4 4 8 17 . . . Brawler 2 | . . . 1 1 . . . Duelist 2 | . . . 1 1 . . . Protector 3 | . . . . 3 . . . Sentry 10 | . . 4 6 . . . . Specialist 3 | . . . . 3 . . . Hunter 7 | . . . . 5 2 . . Programmer 8 | . . . . 8 . . . Heavy 1 | . . . . 1 . . . Best Kill Streak 15 | 3 5 5 9 15 2 . 2 Combat Bots Only 12 | . 3 5 9 12 2 . 1 Max Kills in Single Turn 6 | 1 1 1 2 6 1 . 2 Gunslinging . | . . . . . . . . Exploded 5 | . . . . 5 . . . Melee 1 | . . . . . . . 1 Uniques/NPCs Destroyed . | . . . . . . . . Combat | -11 -10 -9 -8 -7 -6 -6 -6 -------- Run | Yrd Mat Mat Mat Fac Fac Was Fac Hostile Shots Fired 705 | . 18 135 146 209 57 7 133 Missed 206 | . 8 36 37 63 14 1 47 Hits 499 | . 10 99 109 146 43 6 86 Melee 12 | . . . 1 2 . 6 3 Projectile 487 | . 10 99 108 144 43 . 83 Critical Strikes 19 | . . 3 1 5 3 5 2 Part Disruptions 1 | . . . . 1 . . . Damage Taken 8050 | . 122 1062 1273 3508 446 401 1238 Core 1926 | . 17 284 277 472 59 209 608 Absorbed by Shields . | . . . . . . . . Redirected to Shielding 206 | . . . . 206 . . . Ignored by Resistances 171 | . . . 40 . 88 43 . Core Remaining (%) 60 | 100 93 29 49 32 . . . Volleys Fired 314 | 21 36 62 64 108 11 5 7 Largest 3 | 2 2 2 3 3 3 3 3 Hottest 240 | 70 70 91 204 195 169 88 240 Shots Fired 667 | 42 72 115 155 232 31 9 11 Gun 421 | 42 72 107 11 143 31 4 11 Cannon 237 | . . 8 144 83 . 2 . Launcher 9 | . . . . 6 . 3 . Special . | . . . . . . . . Kinetic 240 | 21 36 58 69 45 9 2 . Thermal 336 | 21 36 48 86 108 22 4 11 Explosive 9 | . . . . 6 . 3 . Electromagnetic 82 | . . 9 . 73 . . . Robot Hit Streak 13 | 8 10 12 11 13 13 10 11 Robot Miss Streak 6 | 2 6 4 5 3 2 . 5 Penetration Max . | . . . . . . . . Secondary Targets 8 | . . 3 . 3 1 . 1 Max Gunslinging Chain 1 | . . 1 . 1 1 . 1 Shots Hit Robots 427 | 30 42 77 77 160 20 9 12 Core Hits 249 | 10 19 31 44 133 4 . 8 Critical Kills 1 | . . . 1 . . . . Critical Parts Destroyed . | . . . . . . . . Critical Strikes 13 | 1 2 3 3 2 . 1 1 Burn 8 | 1 2 3 . 1 . 1 . Meltdown 1 | . . . 1 . . . . Blast 3 | . . . 2 1 . . . Impale 1 | . . . . . . . 1 Melee Attacks 8 | . . . . . . . 8 Impact . | . . . . . . . . Slashing 5 | . . . . . . . 5 Piercing 3 | . . . . . . . 3 Sneak Attacks . | . . . . . . . . Combat Hostiles . | . . . . . . . . Follow-up Attacks . | . . . . . . . . Damage Inflicted 12701 | 337 438 1128 2071 6744 505 1170 308 Guns 4835 | 337 438 985 195 2131 505 97 147 Cannons 3657 | . . 143 1876 1591 . 47 . Explosions 4048 | . . . . 3022 . 1026 . Melee 147 | . . . . . . . 147 Ramming 14 | . . . . . . . 14 Kinetic 2708 | 98 171 534 1082 651 125 47 . Thermal 4770 | 239 267 490 989 2161 380 97 147 Explosive 3797 | . . . . 2771 . 1026 . Electromagnetic 1265 | . . 104 . 1161 . . . Impact . | . . . . . . . . Slashing 89 | . . . . . . . 89 Piercing 58 | . . . . . . . 58 Highest Corruption 33 | . . . . 15 . 28 33 Average Corruption 14 | . . . . 11 . 9 30 Corruption Purged . | . . . . . . . . Corruption Blocked . | . . . . . . . . Effects 69 | . . . . 46 . 4 19 Message Errors 13 | . . . . 9 . 1 3 Matter Fused 12 | . . . . 9 . . 3 Heat Flow Errors 7 | . . . . 4 . 2 1 Energy Discharges 9 | . . . . 8 . . 1 Parts Rejected 2 | . . . . 1 . . 1 Parts Fused 1 | . . . . . . . 1 Data Loss (minor) 8 | . . . . 5 . 1 2 Data Loss (major) 1 | . . . . 1 . . . Misfires 2 | . . . . 2 . . . Alerts 2 | . . . . 2 . . . Misdirections 8 | . . . . 1 . . 7 Weapon Failures 4 | . . . . 4 . . . Overload Shots 4 | . . . . . 4 . . Overflow Damage 408 | . . . 61 347 . . . Projectiles 109 | . . . 61 48 . . . Explosions 299 | . . . . 299 . . . Melee . | . . . . . . . . Knockbacks 5 | . . . 3 2 . . . Impact . | . . . . . . . . Kinetic 5 | . . . 3 2 . . . Secondary . | . . . . . . . . Self-Inflicted Damage 885 | . . . . 711 . 167 7 Shots 15 | . . . . 12 . 3 . Rammed 4 | . . . . . . . 4 Targets Rammed 4 | . . . . . . . 4 Kicked . | . . . . . . . . Crushed . | . . . . . . . . Highest Temperature 504 | 140 280 88 504 324 226 171 136 Average Temperature 82 | 48 108 20 208 82 93 55 49 Received Heat Transfer 1401 | . 66 255 423 504 . . 153 Effects 5 | . . . 2 3 . . . Shutdowns 1 | . . . 1 . . . . Interference 3 | . . . . 3 . . . Short Circuit 1 | . . . 1 . . . . Siege Activations . | . . . . . . . . Martial Activations . | . . . . . . . . Shielding Activations . | . . . . . . . . Robots Disrupted . | . . . . . . . . Combat Hostiles . | . . . . . . . . Robots Corrupted 3 | . . . . 3 . . . Combat Hostiles 3 | . . . . 3 . . . Parts Fried 6 | . . . . 6 . . . Impact Corruptions . | . . . . . . . . Robots Melted 2 | . . . 1 . 1 . . Combat Hostiles 1 | . . . . . 1 . . Parts Melted 24 | 2 2 4 3 8 5 . . Heat Transferred 9250 | 777 925 1408 1517 3233 740 300 350 Parts Sabotaged . | . . . . . . . . Parts Stolen . | . . . . . . . . Parts Stripped . | . . . . . . . . Power Chain Reactions 3 | . . . . 3 . . . Alert | -11 -10 -9 -8 -7 -6 -6 -6 ------- Run | Yrd Mat Mat Mat Fac Fac Was Fac Maximum Alert Level 3 | . . . 2 3 2 . . Low Security (%) 42 | 100 100 100 25 14 . 100 100 Level 1 19 | . . . 24 30 31 . . Level 2 25 | . . . 50 27 68 . . Level 3 11 | . . . . 27 . . . Level 4 . | . . . . . . . . Level 5 . | . . . . . . . . High Security . | . . . . . . . . Max Security . | . . . . . . . . Peak Influence 886 | 10 131 183 503 886 446 140 115 Initial 431 | . . 31 68 219 431 140 . Average 306 | 2 76 104 318 460 410 67 29 Influence Increases 3467 | 40 227 505 902 1511 111 15 156 Destroy 0b10 Robot/C 1920 | . 80 360 620 780 40 . 40 Destroy 0b10 Robot/NC 250 | 40 15 15 45 125 . . 10 Destroy Leader 446 | . 32 94 128 182 10 . . Successful Hack 121 | . 24 20 19 42 16 . . Disable Machine 315 | . . . 45 255 15 . . Destroy Structure 130 | . 1 1 45 67 . 15 1 Partial Spotted 30 | . . . . . 15 . 15 Lose Combat Pursuer 255 | . 75 15 . 60 15 . 90 Influence Decreases 3431 | 40 151 419 580 1115 589 417 120 Entered New Map 1115 | . . 45 94 265 449 262 . Time Decay 1676 | 40 151 254 416 610 100 55 50 Lost Part 620 | . . 120 70 240 40 80 70 Lost Ally 20 | . . . . . . 20 . Squads Dispatched 21 | . 2 2 6 10 1 . . Investigation 1 | . . 1 . . . . . Extermination 5 | . . . . 5 . . . Reinforcement 9 | . 2 1 . 5 1 . . Assault . | . . . . . . . . Garrison 6 | . . . 6 . . . . Intercept . | . . . . . . . . Searches Triggered . | . . . . . . . . Construction Impeded 1 | . . . . 1 . . . Haulers Reinforced . | . . . . . . . . Active Scanning Responses . | . . . . . . . . Cargo Convoy Interrupts 1 | . . . . 1 . . . Stealth | -11 -10 -9 -8 -7 -6 -6 -6 --------- Run | Yrd Mat Mat Mat Fac Fac Was Fac Distress Signals 8 | . 2 . 3 1 . . 2 Communications Jammed . | . . . . . . . . Distress Signals . | . . . . . . . . Times Spotted 153 | . 14 22 38 54 4 6 15 Peak Tracking Total 12 | . 6 6 7 12 2 6 12 Tactical Retreats 11 | . 3 1 . 4 1 . 2 Traps | -11 -10 -9 -8 -7 -6 -6 -6 ------- Run | Yrd Mat Mat Mat Fac Fac Was Fac Traps Triggered 3 | . . 1 . . 1 . 1 Indirectly . | . . . . . . . . Trap Hack Attempts . | . . . . . . . . Triggered . | . . . . . . . . Disarmed 6 | . . . . 6 . . . Reprogrammed . | . . . . . . . . Reused . | . . . . . . . . Traps Extracted . | . . . . . . . . Installed . | . . . . . . . . Triggered . | . . . . . . . . Machines | -11 -10 -9 -8 -7 -6 -6 -6 ---------- Run | Yrd Mat Mat Mat Fac Fac Was Fac Machines Disabled 21 | . . . 3 17 1 . . Max in Single Turn 13 | . . . 1 13 1 . . Machines Repaired . | . . . . . . . . Machines Dismantled . | . . . . . . . . Machines Sabotaged . | . . . . . . . . Overloaded Fab Kills . | . . . . . . . . Hacking | -11 -10 -9 -8 -7 -6 -6 -6 --------- Run | Yrd Mat Mat Mat Fac Fac Was Fac Machines Accessed 26 | . 3 3 8 7 3 . 2 Terminals 22 | . 3 3 6 6 3 . 1 Fabricators 1 | . . . . 1 . . . Repair Stations 1 | . . . . . . . 1 Recycling Units . | . . . . . . . . Scanalyzers 2 | . . . 2 . . . . Garrison Access . | . . . . . . . . Total Hacks 75 | . 12 11 25 15 8 . 4 Successful 34 | . 7 4 16 4 3 . . Failed 41 | . 5 7 9 11 5 . 4 Catastrophic 7 | . . 1 1 4 . . 1 Database Lockouts . | . . . . . . . . Manual 32 | . 7 11 10 3 1 . . Terminals 69 | . 12 11 21 14 8 . 3 Fabricators 1 | . . . . 1 . . . Repair Stations 1 | . . . . . . . 1 Recycling Units . | . . . . . . . . Scanalyzers 4 | . . . 4 . . . . Garrison Access . | . . . . . . . . Terminal Hacks 21 | . 6 1 8 4 2 . . Robot Analysis 4 | . 2 1 1 . . . . Prototype ID Bank 3 | . 1 . 2 . . . . Open DSF 1 | . . . . . 1 . . Branch Access Points 1 | . . . . . 1 . . Terminal Index 1 | . 1 . . . . . . Locate Traps 8 | . 1 . 4 3 . . . Disarm Traps 1 | . . . . 1 . . . Hauler Manifests 2 | . 1 . 1 . . . . Fabricator Hacks . | . . . . . . . . Repair Station Hacks . | . . . . . . . . Recycling Unit Hacks . | . . . . . . . . Scanalyzer 3 | . . . 3 . . . . Insert Component 2 | . . . 2 . . . . Analyze 1 | . . . 1 . . . . Garrison Access Hacks . | . . . . . . . . Unauthorized Hacks 10 | . 1 3 5 . 1 . . Terminals 10 | . 1 3 5 . 1 . . Track 2 | . . 1 1 . . . . Botnet 6 | . 1 2 3 . . . . Operators 2 | . . . 1 . 1 . . Fabricators . | . . . . . . . . Repair Stations . | . . . . . . . . Recycling Units . | . . . . . . . . Scanalyzers . | . . . . . . . . Garrison Access . | . . . . . . . . Data Cores Recovered 1 | . . . . 1 . . . Used . | . . . . . . . . Hacking Detections 23 | . 3 3 7 6 2 . 2 Full Trace Events . | . . . . . . . . Feedback Events . | . . . . . . . . Feedback Blocked . | . . . . . . . . Robot Schematics Acquired . | . . . . . . . . Robots Built . | . . . . . . . . Authchips . | . . . . . . . . Time . | . . . . . . . . Total Robot Build Rating . | . . . . . . . . Part Schematics Acquired . | . . . . . . . . Parts Built . | . . . . . . . . Authchips . | . . . . . . . . Time . | . . . . . . . . Total Part Build Rating . | . . . . . . . . Parts Repaired . | . . . . . . . . Time . | . . . . . . . . Parts Recycled . | . . . . . . . . Recycled Matter . | . . . . . . . . Retrieved Matter . | . . . . . . . . Retrieved Components . | . . . . . . . . Parts Scanalyzed 1 | . . . 1 . . . . Part Schematics Acquired . | . . . . . . . . Parts Damaged . | . . . . . . . . Bothacking | -11 -10 -9 -8 -7 -6 -6 -6 ------------ Run | Yrd Mat Mat Mat Fac Fac Was Fac Used RIF Installer . | . . . . . . . . Robots Hacked . | . . . . . . . . Non-combat . | . . . . . . . . Combat . | . . . . . . . . Robot Hacks Applied . | . . . . . . . . Relay Couplers Released . | . . . . . . . . Fabnet Peak Effective % . | . . . . . . . . Robots Rewired . | . . . . . . . . Allies Hacked . | . . . . . . . . Hacks Repelled . | . . . . . . . . Allies | -11 -10 -9 -8 -7 -6 -6 -6 -------- Run | Yrd Mat Mat Mat Fac Fac Was Fac Total Allies 1 | . . . . . . 1 . Largest Group 1 | . . . . . . 1 . Highest-Rated Group 31 | . . . . . . 31 . Highest-Rated Ally 31 | . . . . . . 31 . Total Orders . | . . . . . . . . Ally Attacks 13 | . . . . . . 13 . Total Damage 210 | . . . . . . 210 . Kills . | . . . . . . . . Allies Corrupted . | . . . . . . . . Allies Melted . | . . . . . . . . Intel | -11 -10 -9 -8 -7 -6 -6 -6 ------- Run | Yrd Mat Mat Mat Fac Fac Was Fac Active Infowar (turns) 1172 | . 184 297 . 290 213 87 101 Optics 100 | . . . . . . . 100 Sensors 239 | . . . . 239 . . . A.S.S. 351 | . . . . 51 213 87 . Terrain 255 | . . 255 . . . . . Seismic 481 | . 184 297 . . . . . ECM 2 | . . . . . . . 2 Robot Analysis Total 4 | . 2 1 1 . . . . Derelict Logs Recovered . | . . . . . . . . Drone Launches . | . . . . . . . . Drone Recoveries . | . . . . . . . . Exploration | -11 -10 -9 -8 -7 -6 -6 -6 ------------- Run | Yrd Mat Mat Mat Fac Fac Was Fac Turns Passed 4637 | 179 328 554 1003 1984 213 140 236 Spaces Moved 2837 | 122 222 287 567 1147 112 140 240 Core 131 | 2 . . . . . 98 31 Treads . | . . . . . . . . Legs . | . . . . . . . . Wheels 2502 | 120 222 287 567 1147 112 42 5 Hover 204 | . . . . . . . 204 Flight . | . . . . . . . . Fastest Speed 50 | 50 80 105 101 120 128 50 50 Average Speed 114 | 82 93 106 120 131 148 87 62 Slowest Speed 300 | 90 105 130 145 190 260 300 100 Overloaded Moves . | . . . . . . . . Propulsion Burnouts . | . . . . . . . . Robots Hopped . | . . . . . . . . Potential Cave-ins 3 | . . . . . . 3 . Cave-ins Triggered 1 | . . . . . . 1 . Exploration Rate (%) 31 | 6 32 28 58 28 5 83 8 Regions Visited 7 Branch Regions . Pre-discovered Areas . | . . . . . . . . Known Exits Taken 1 | . . . . 1 . . . Unknown Exits Taken 4 | 1 1 1 1 . . . . Scrap Searched . | . . . . . . . . Spaces Dug 4 | . . . 3 . . . 1 Terrain Destroyed 159 | . . . 48 69 . 41 1 Melee 1 | . . . . . . . 1 Projectile 55 | . . . 48 7 . . . AOE 103 | . . . . 62 . 41 . Terrain Rammed . | . . . . . . . . Walls Destroyed . | . . . . . . . . Machines Disabled . | . . . . . . . . Actions | -11 -10 -9 -8 -7 -6 -6 -6 --------- Run | Yrd Mat Mat Mat Fac Fac Was Fac Total 3649 | 157 278 423 774 1439 135 151 292 Wait 158 | . 11 29 53 53 . . 12 Move 2830 | 121 221 286 566 1146 112 138 240 Hop . | . . . . . . . . Pick Up 86 | 6 3 19 29 23 4 2 . Fast Attach 62 | 7 1 6 9 21 4 1 13 Attach 42 | . . 9 5 20 2 4 2 Detach 17 | . . 1 3 9 1 . 3 Swap 54 | 2 3 5 15 27 1 . 1 Drop 73 | . 3 6 30 32 . . 2 Fire 314 | 21 36 62 64 108 11 5 7 Melee 8 | . . . . . . . 8 Ram 4 | . . . . . . . 4 Kick . | . . . . . . . . Crush . | . . . . . . . . Escape Stasis 1 | . . . . . . 1 . Rewire . | . . . . . . . . Trap . | . . . . . . . . Miscellaneous . | . . . . . . . . Route ------- -11/Scrapyard -10/Materials (discovered 2 exits: *Mat / [*Min]) -9/Materials (discovered 2 exits: *Mat / [*Min]) -8/Materials -7/Factory -6/Factory (discovered 2 exits: Low x2) -6/Waste -6/Factory (discovered 1 exit: *Low) History --------- Turn | Location | Event 6 | -11/Scrapyard | Discovered new exit (range 16) 180 | -11/Scrapyard | Entered Materials 345 | -10/Materials | Build established: Mutant 383 | -10/Materials | Discovered new exit (range 10) 439 | -10/Materials | Discovered new exit (range 8) 508 | -10/Materials | Entered another Materials area 508 | -9/Materials | Evolved 2 slots: Utility x2 733 | -9/Materials | Discovered new exit (range 16) 814 | -9/Materials | Core integrity fell below 50% 845 | -9/Materials | Lost 7 parts (1p2n2u2w) 966 | -9/Materials | Lost 3 parts (1p1u1w) 987 | -9/Materials | Discovered new exit (range 5) 1062 | -9/Materials | Entered another Materials area 1062 | -8/Materials | Evolved 2 slots: Propulsion x1, Weapon x1 1199 | -8/Materials | Garrison activated, responded to threat 1365 | -8/Materials | Destroyed 9 combat bots 1372 | -8/Materials | Lost 3 parts (1n1u1w) 1545 | -8/Materials | Garrison activated, responded to threat 1628 | -8/Materials | Build established: Scavenger-Gunner 1977 | -8/Materials | Core integrity fell below 50% 2020 | -8/Materials | Discovered new exit (range 16) 2065 | -8/Materials | Entered Factory 2065 | -7/Factory | Evolved 2 slots: Power x1, Utility x1 2407 | -7/Factory | Build established: Hacker-Gunner 2509 | -7/Factory | Lost 6 parts (2n1u3w) 2783 | -7/Factory | Build established: Scavenger-Gunner 2899 | -7/Factory | Found Rocket Array 2904 | -7/Factory | Found Rocket Array 3038 | -7/Factory | Lost 3 parts (1n2u) 3233 | -7/Factory | System corruption reached 10% 3447 | -7/Factory | Cargo convoy interrupted 3490 | -7/Factory | Destroyed 12 combat bots 3524 | -7/Factory | Found Prototype Launcher 3524 | -7/Factory | Identified Mni. Smartbomb Launcher 3689 | -7/Factory | Build established: Gunner 3928 | -7/Factory | Core integrity fell below 50% 3998 | -7/Factory | Found Prototype Device 3998 | -7/Factory | Identified Active Sensor Suite 4013 | -7/Factory | Lost 9 parts (2n2u5w) 4024 | -7/Factory | Discovered new exit (range 5) 4028 | -7/Factory | Identified exit to Factory 4049 | -7/Factory | Entered another Factory area 4049 | -6/Factory | Evolved 2 slots: Propulsion x1, Utility x1 4238 | -6/Factory | Identified exit to Lower Caves 4262 | -6/Factory | Sucked down chute 4262 | -6/Factory | Entered Waste 4263 | -6/Waste | Met a frightened Derelict 4274 | -6/Waste | Spotted C-40 Crusher 4277 | -6/Waste | EMP discharged 4278 | -6/Waste | Spotted C-40 Crusher 4295 | -6/Waste | Spotted C-40 Crusher 4296 | -6/Waste | Spotted C-40 Crusher 4303 | -6/Waste | Found Corrupted Quantum Capacitor 4308 | -6/Waste | Spotted C-40 Crusher 4314 | -6/Waste | Crushed by Compactor (1 part destroyed, 2 dropped) 4334 | -6/Waste | Crushed by Compactor (1 part destroyed, 1 dropped) 4339 | -6/Waste | Spotted C-40 Crusher 4342 | -6/Waste | Crushed by Compactor (1 part destroyed, 2 dropped) 4346 | -6/Waste | Crushed by Compactor (1 part destroyed) 4349 | -6/Waste | Crushed by Compactor (1 part destroyed) 4350 | -6/Waste | Crushed by Compactor (1 part destroyed) 4352 | -6/Waste | Crushed by falling debris 4376 | -6/Waste | Discovered new exit (range 12) 4377 | -6/Waste | EMP discharged 4377 | -6/Waste | System corruption reached 10% 4381 | -6/Waste | Lost 8 parts (2n3u3w) 4402 | -6/Waste | Entered Factory 4484 | -6/Factory | Discovered exit to Lower Caves (range 16) 4501 | -6/Factory | System corruption reached 30% 4581 | -6/Factory | Core integrity fell below 50% 4614 | -6/Factory | Core integrity fell below 20% 4638 | -6/Factory | Destroyed by L-41 Fighter with Axe Last Messages --------------- 04564_ S-27 Virus destroyed. 04564_ Switching to secondary target: S-27 Virus. 04571_ Slammed into S-27 Virus. 04575_ System corrupted: Matter fused (-5). 04581_ Gatling Laser destroyed. 04587_ S-27 Virus suffers critical hit (Impale). 04587_ S-27 Virus destroyed. 04589_ Gatling Laser destroyed. 04589_ Force Lance destroyed. 04590_ System corrupted: ECM Suite fused. 04598_ W-25 Informer sends out distress signal. 04600_ Acquired System Restoration Module. 04605_ System corrupted: Matter fused (-9). 04605_ Gatling Laser destroyed. 04610_ Gravmag Array destroyed. 04613_ ECM Suite destroyed. 04613_ System Restoration Module destroyed. 04623_ System corrupted: Greatsword rejected. 04623_ Acquired Greatsword. 04630_ K-01 Serf cleans the Fusion Modulator. Map ----- +----------------------------------------------------+ | ?????????????????????????????????????????????????? | | ?????????????????????????????????????????????????? | | ?????????????????????????????????????????????????? | | ?????????????????????????????????????????????????? | | ????? ? ??????????????? ?????????????????????????? | | ???? " ??????????????? ?????????????????????????? | | ???? ??????????????# ?????????????????????????? | | ???? ??????????????# ?????????????????????????? | | ????# ??????????????# ?????????????????????????? | | ????# ###???????????# ?????????????????????????? | | ????# ## ########???# ?????????????????????????? | | ????# ## #???# #????????????????????????? | | ????# ## #???# #????????????????????????? | | ????# ## ]]] #?### ###????????????????####### | | ????# ## ]]] #?# #????????????????# # | | ????+ T# ]]] ### !################## | | ????# # + [ !! > | | ????# ## ### ################## | | ????# ## ??# #????????????????# # | | ????# #??] ??#####+#########??????????### ### | | ##??# #####+##### k #????????????# #?? | | ?# ## ## """ """"" #????????????# #?? | | # ## + """ ""R"" #????????????#+#?? | | # "" ##u""" " " #??????????? ? | | / T ## u us #????????? | | "" # ## ul@ #???????# """ """ | | ????##%### #######g########???????# """ """ | | ?????# #?#= #??# #?????????# """ """ | | ######/##### ###??# YY ! #?????????# | | *% # #????# #?????????# """ """ | | / #????#g #?????????#????" "?? | | # #????#g""" """ #??????????????" "?? | | # ###### """ """ #?????????????? ?? | | # # """ """ #?????????????? ?? | | # + #??????????????? ??? | | / # ####+######???????????????#??? | | ############# ### #????????????????????????????? | | ?############/### #????????????????????????????? | | ?# # #????????????????????????????? | | ?# = # #????????????????????????????? | | ?# + #????????????????????????????? | | ?# """ """ """ # #????????????????????????????? | | ?# """ """ """ # #????????????????????????????? | | ?# """ """ """ # ???????????????????????????? | | ???############## ?????????????????????????? | | ????????????????# ???????????????????????? | | ????????????????###### #?????????????????????? | | ??????????????????????## ###?????????????????????? | | ?????????????????????????#???????????????????????? | | ?????????????????????????????????????????????????? | +----------------------------------------------------+ Best States ------------- Heat Dissipation 62 Energy Generation 38 Energy Capacity 520 Matter Stores 300 Matter Capacity 300 Sight Range 22 Robot Scan Range 20 Terrain Scan Range 16 Terrain Scan Density 85 Additional Mass Support 12 Base Temperature (-) 100 Armor Coverage 375 Resistance: KI 20 Resistance: TH 10 Weapon Shielding 90 Weapon Cycling 15 Evasion (%) 61 Targeting Accuracy 13 Melee Accuracy 8 Energy Filtering 30 Particle Charging 15 Defensive Hacking 20 Item Schematics ----------------- None Robot Schematics ------------------ None Fabricated ------------ Nothing Repaired ---------- Nothing Alien Tech Used ----------------- None Achievements -------------- None Challenges ------------ None Game ------ Seed ModifiedPointBrace Manual? 0 Play Time 01:12:45 Cumulative 225.2 hours Start 2025.08.03 @ 19:41:57 End 2025.08.03 @ 21:12:41 Sessions 1 Manual Loads 0 Difficulty Rogue Special Mode None Game No. 229 Rogue 229 Adventurer 0 Explorer 0 Win Type - Total 0 Types 0/0/0/0/0/0/0/0/0/0 Lore% 23 Gallery% 57 Achievement% 45 Wizard Run 0 Options --------- Layout 0 ASCII 0 Keyboard 1 Movement Vi Keybinds 0 Fullscreen 1 Font 24/Smallcaps Map View 76x50 Zoom Use 0% Tactical HUD 1 Map Filters NONE Filters NONE Steam 1 RUN: 9317488d-0c16-4087-9c6e-cf83a88f25b6